[Event "*** Titled Tuesday Blitz"]
[Site "Chess.com"]
[Date "2021.04.06"]
[Round "2"]
[White "alejogarcia1999"]
[Black "Vincent_Vega95"]
[Result "0-1"]
[WhiteElo "2413"]
[BlackElo "2707"]
[TimeControl "180+1"]
[EndTime "10:19:10 PDT"]
[Termination "Vincent_Vega95 won on time"]

1. Nf3 {[%clk 0:03:00.9]} 1... Nf6 {[%clk 0:02:59.8]} 2. g3 {[%clk 0:03:01.2]}
2... g6 {[%clk 0:03:00.7]} 3. Bg2 {[%clk 0:03:01.7]} 3... Bg7 {[%clk 0:03:01.6]}
4. O-O {[%clk 0:03:02.2]} 4... O-O {[%clk 0:03:02.5]} 5. c4 {[%clk 0:03:02.8]}
5... d6 {[%clk 0:03:02.8]} 6. Nc3 {[%clk 0:03:02.8]} 6... Nc6 {[%clk 0:03:00.7]}
7. Rb1 {[%clk 0:03:02.6]} 7... a5 {[%clk 0:03:00.3]} 8. a3 {[%clk 0:03:02.7]}
8... e5 {[%clk 0:02:58.5]} 9. b4 {[%clk 0:03:02.7]} 9... axb4 {[%clk 0:02:58.9]}
10. axb4 {[%clk 0:03:03.6]} 10... h6 {[%clk 0:02:54.2]} 11. b5 {[%clk
0:03:03.5]} 11... Ne7 {[%clk 0:02:53.5]} 12. Bb2 {[%clk 0:02:55.4]} 12... Be6
{[%clk 0:02:52.5]} 13. d3 {[%clk 0:02:55.4]} 13... Qd7 {[%clk 0:02:52.9]} 14.
Re1 {[%clk 0:02:55.7]} 14... Bh3 {[%clk 0:02:52.5]} 15. Bh1 {[%clk 0:02:56]}
15... Ng4 {[%clk 0:02:53.1]} 16. Ra1 {[%clk 0:02:55.2]} 16... f5 {[%clk
0:02:50.8]} 17. Qb3 {[%clk 0:02:54.6]} 17... Kh7 {[%clk 0:02:49.3]} 18. Rxa8
{[%clk 0:02:52.1]} 18... Rxa8 {[%clk 0:02:48.9]} 19. Ra1 {[%clk 0:02:52.1]}
19... Rxa1+ {[%clk 0:02:49.5]} 20. Bxa1 {[%clk 0:02:53]} 20... e4 {[%clk
0:02:43.3]} 21. dxe4 {[%clk 0:02:42.3]} 21... fxe4 {[%clk 0:02:42.6]} 22. Nxe4
{[%clk 0:02:42.4]} 22... Bxa1 {[%clk 0:02:41.1]} 23. Neg5+ {[%clk 0:02:42.2]}
23... hxg5 {[%clk 0:02:37.1]} 24. Nxg5+ {[%clk 0:02:42.3]} 24... Kg7 {[%clk
0:02:33.2]} 25. Nxh3 {[%clk 0:02:37.3]} 25... c6 {[%clk 0:02:16.4]} 26. Nf4
{[%clk 0:02:21.7]} 26... Be5 {[%clk 0:02:12.2]} 27. bxc6 {[%clk 0:02:13]} 27...
bxc6 {[%clk 0:02:12.3]} 28. Nd3 {[%clk 0:02:06.2]} 28... Bd4 {[%clk 0:01:54.6]}
29. e3 {[%clk 0:02:05.9]} 29... Bf6 {[%clk 0:01:47.4]} 30. Bf3 {[%clk
0:01:38.3]} 30... Nh6 {[%clk 0:01:45]} 31. Nf4 {[%clk 0:01:34]} 31... Nf7 {[%clk
0:01:41]} 32. h3 {[%clk 0:01:15.1]} 32... Ne5 {[%clk 0:01:38.1]} 33. Bg2 {[%clk
0:01:15.3]} 33... Bg5 {[%clk 0:01:30.9]} 34. Qc3 {[%clk 0:01:04]} 34... Bf6
{[%clk 0:01:30.8]} 35. Qb3 {[%clk 0:01:01.5]} 35... Nf7 {[%clk 0:01:24]} 36. Kh2
{[%clk 0:00:57.3]} 36... Be5 {[%clk 0:01:21.6]} 37. Nd3 {[%clk 0:00:56.2]} 37...
Qe6 {[%clk 0:01:12.3]} 38. Qb7 {[%clk 0:00:50.3]} 38... Bf6 {[%clk 0:01:10.2]}
39. Qb4 {[%clk 0:00:22.2]} 39... g5 {[%clk 0:01:08.3]} 40. Ne1 {[%clk
0:00:17.3]} 40... Ne5 {[%clk 0:01:05.5]} 41. c5 {[%clk 0:00:17.3]} 41... d5
{[%clk 0:00:55.1]} 42. Nc2 {[%clk 0:00:15.7]} 42... Nd3 {[%clk 0:00:49.7]} 43.
Nd4 {[%clk 0:00:15.3]} 43... Qd7 {[%clk 0:00:40.5]} 44. Qc3 {[%clk 0:00:07.9]}
44... Nxf2 {[%clk 0:00:40.1]} 45. Qc2 {[%clk 0:00:08.2]} 45... Bxd4 {[%clk
0:00:34]} 46. exd4 {[%clk 0:00:08.6]} 46... Qf5 {[%clk 0:00:34.5]} 47. Qe2
{[%clk 0:00:08.9]} 47... Ne4 {[%clk 0:00:34.5]} 48. Qa6 {[%clk 0:00:08]} 48...
Qd7 {[%clk 0:00:33.5]} 49. Qd3 {[%clk 0:00:07.4]} 49... Qe6 {[%clk 0:00:32.6]}
50. Qf3 {[%clk 0:00:07.1]} 50... Nf5 {[%clk 0:00:31]} 51. Qg4 {[%clk 0:00:06.7]}
51... Nxd4 {[%clk 0:00:28.9]} 52. Qd1 {[%clk 0:00:02.3]} 52... Qe5 {[%clk
0:00:28.3]} 53. Qd3 {[%clk 0:00:02.2]} 53... Nf5 {[%clk 0:00:27]} 54. Bxe4
{[%clk 0:00:02]} 54... Qxe4 {[%clk 0:00:26.6]} 55. Qc3+ {[%clk 0:00:02.1]} 55...
Qd4 {[%clk 0:00:24.9]} 0-1

[Event "*** Titled Tuesday Blitz"]
[Site "Chess.com"]
[Date "2021.04.06"]
[Round "2"]
[White "VladimirBugayev"]
[Black "nss13"]
[Result "1-0"]
[WhiteElo "2270"]
[BlackElo "2527"]
[TimeControl "180+1"]
[EndTime "10:19:10 PDT"]
[Termination "VladimirBugayev won on time"]

1. e4 {[%clk 0:03:00.9]} 1... c5 {[%clk 0:02:59]} 2. Nc3 {[%clk 0:03:00.1]} 2...
Nc6 {[%clk 0:02:58.7]} 3. Bb5 {[%clk 0:02:59.9]} 3... Nd4 {[%clk 0:02:58.1]} 4.
Nf3 {[%clk 0:03:00.1]} 4... Nxb5 {[%clk 0:02:54.8]} 5. Nxb5 {[%clk 0:03:01]}
5... a6 {[%clk 0:02:55.7]} 6. Nc3 {[%clk 0:03:00.7]} 6... e6 {[%clk 0:02:56.2]}
7. d4 {[%clk 0:03:01.3]} 7... cxd4 {[%clk 0:02:57.1]} 8. Qxd4 {[%clk 0:03:00.5]}
8... d6 {[%clk 0:02:56.7]} 9. Bg5 {[%clk 0:02:54.9]} 9... Nf6 {[%clk 0:02:54.9]}
10. O-O-O {[%clk 0:02:52.7]} 10... Be7 {[%clk 0:02:40.2]} 11. Bh4 {[%clk
0:02:46.8]} 11... Bd7 {[%clk 0:02:22.3]} 12. Bg3 {[%clk 0:02:45.4]} 12... Bc6
{[%clk 0:02:22.5]} 13. Rhe1 {[%clk 0:02:42.6]} 13... e5 {[%clk 0:02:21.4]} 14.
Qb4 {[%clk 0:02:17.8]} 14... Qc7 {[%clk 0:01:37.7]} 15. Nd5 {[%clk 0:02:11]}
15... Bxd5 {[%clk 0:01:15]} 16. exd5 {[%clk 0:02:10.6]} 16... Rc8 {[%clk
0:01:10.9]} 17. Re2 {[%clk 0:01:58.1]} 17... O-O {[%clk 0:01:03.5]} 18. Nh4
{[%clk 0:01:56.1]} 18... g6 {[%clk 0:00:43.9]} 19. f4 {[%clk 0:01:48.3]} 19...
e4 {[%clk 0:00:29.4]} 20. Bf2 {[%clk 0:01:35.6]} 20... Ng4 {[%clk 0:00:20.5]}
21. g3 {[%clk 0:01:12.6]} 21... Bxh4 {[%clk 0:00:18]} 22. Bb6 {[%clk 0:01:02.3]}
22... Qc4 {[%clk 0:00:17.4]} 23. Qxc4 {[%clk 0:01:02.1]} 23... Rxc4 {[%clk
0:00:18.3]} 24. gxh4 {[%clk 0:01:02.7]} 24... f5 {[%clk 0:00:17.2]} 25. b3
{[%clk 0:00:56.9]} 25... Rcc8 {[%clk 0:00:17.1]} 26. c4 {[%clk 0:00:55]} 26...
Nf6 {[%clk 0:00:16.4]} 27. Kd2 {[%clk 0:00:51.2]} 27... Nd7 {[%clk 0:00:15.9]}
28. Bd4 {[%clk 0:00:50.9]} 28... h5 {[%clk 0:00:13.8]} 29. Rg1 {[%clk
0:00:48.1]} 29... Kf7 {[%clk 0:00:14.3]} 30. Reg2 {[%clk 0:00:46.8]} 30... Rg8
{[%clk 0:00:14.9]} 31. Ke3 {[%clk 0:00:47.4]} 31... Nc5 {[%clk 0:00:14.8]} 32.
Bxc5 {[%clk 0:00:43.3]} 32... Rxc5 {[%clk 0:00:14.5]} 33. Kd4 {[%clk 0:00:43.1]}
33... b5 {[%clk 0:00:14.6]} 34. Rc1 {[%clk 0:00:34.5]} 34... Rgc8 {[%clk
0:00:13]} 35. Rcg1 {[%clk 0:00:30.8]} 35... Rg8 {[%clk 0:00:12.4]} 36. Rc1
{[%clk 0:00:30.7]} 36... bxc4 {[%clk 0:00:12.4]} 37. Rxc4 {[%clk 0:00:25.4]}
37... Rxc4+ {[%clk 0:00:11.6]} 38. bxc4 {[%clk 0:00:25.5]} 38... Rb8 {[%clk
0:00:12.1]} 39. a3 {[%clk 0:00:20.6]} 39... Rb1 {[%clk 0:00:11.4]} 40. Rd2
{[%clk 0:00:18.2]} 40... Rc1 {[%clk 0:00:10.6]} 41. Rb2 {[%clk 0:00:18.2]} 41...
Rd1+ {[%clk 0:00:08.7]} 42. Kc3 {[%clk 0:00:12.9]} 42... Rd3+ {[%clk 0:00:08.8]}
43. Kb4 {[%clk 0:00:13.1]} 43... Rf3 {[%clk 0:00:09]} 44. c5 {[%clk 0:00:13.1]}
44... dxc5+ {[%clk 0:00:07.8]} 45. Kxc5 {[%clk 0:00:13]} 45... Rxf4 {[%clk
0:00:08.3]} 46. Rb7+ {[%clk 0:00:11.2]} 46... Kf6 {[%clk 0:00:08.4]} 47. Rb6+
{[%clk 0:00:10.1]} 47... Kf7 {[%clk 0:00:04.5]} 48. Rb7+ {[%clk 0:00:08.3]}
48... Kg8 {[%clk 0:00:01.6]} 49. d6 {[%clk 0:00:07.6]} 49... Rf1 {[%clk
0:00:02.1]} 50. d7 {[%clk 0:00:07.1]} 1-0

[Event "*** Titled Tuesday Blitz"]
[Site "Chess.com"]
[Date "2021.04.06"]
[Round "2"]
[White "campomania3"]
[Black "WPWPWP-2015"]
[Result "1-0"]
[WhiteElo "2243"]
[BlackElo "2434"]
[TimeControl "180+1"]
[EndTime "10:19:11 PDT"]
[Termination "campomania3 won by checkmate"]

1. d4 {[%clk 0:03:00.9]} 1... Nf6 {[%clk 0:02:58.8]} 2. c4 {[%clk 0:03:01.3]}
2... g6 {[%clk 0:02:57.6]} 3. Nc3 {[%clk 0:03:01.7]} 3... Bg7 {[%clk 0:02:57.5]}
4. Nf3 {[%clk 0:03:00.3]} 4... d5 {[%clk 0:02:57.1]} 5. Bg5 {[%clk 0:02:59.8]}
5... c6 {[%clk 0:02:55.2]} 6. e3 {[%clk 0:02:59.2]} 6... O-O {[%clk 0:02:54.3]}
7. Rc1 {[%clk 0:02:58.6]} 7... Bf5 {[%clk 0:02:53.4]} 8. h3 {[%clk 0:02:56.9]}
8... Nbd7 {[%clk 0:02:49.3]} 9. Be2 {[%clk 0:02:49.4]} 9... h6 {[%clk
0:02:45.1]} 10. Bf4 {[%clk 0:02:48.6]} 10... g5 {[%clk 0:02:44.3]} 11. Bh2
{[%clk 0:02:48.1]} 11... e6 {[%clk 0:02:43.9]} 12. O-O {[%clk 0:02:46.3]} 12...
Ne4 {[%clk 0:02:41.1]} 13. Qb3 {[%clk 0:02:38.4]} 13... Qb6 {[%clk 0:02:38.4]}
14. c5 {[%clk 0:02:37.8]} 14... Qxb3 {[%clk 0:02:37.1]} 15. axb3 {[%clk
0:02:37.1]} 15... Nxc3 {[%clk 0:02:35]} 16. bxc3 {[%clk 0:02:28.5]} 16... f6
{[%clk 0:02:34.1]} 17. b4 {[%clk 0:02:21.7]} 17... a6 {[%clk 0:02:33.5]} 18. Ra1
{[%clk 0:02:20.5]} 18... e5 {[%clk 0:02:29.2]} 19. Ra2 {[%clk 0:02:13.5]} 19...
e4 {[%clk 0:02:25.4]} 20. Nd2 {[%clk 0:02:12.2]} 20... Be6 {[%clk 0:02:23.5]}
21. Rfa1 {[%clk 0:02:05.4]} 21... Rac8 {[%clk 0:02:19.9]} 22. Nb3 {[%clk
0:02:03.6]} 22... f5 {[%clk 0:02:04.8]} 23. Na5 {[%clk 0:02:00.7]} 23... Rb8
{[%clk 0:02:04.3]} 24. Bxb8 {[%clk 0:01:54.2]} 24... Rxb8 {[%clk 0:02:05.2]} 25.
Nxc6 {[%clk 0:01:47.7]} 25... bxc6 {[%clk 0:02:02.2]} 26. Rxa6 {[%clk 0:01:47]}
26... Rc8 {[%clk 0:01:44.6]} 27. b5 {[%clk 0:01:31.9]} 27... Nb8 {[%clk
0:01:43.8]} 28. Rb6 {[%clk 0:01:27.9]} 28... Bf6 {[%clk 0:00:26.2]} 29. Ra8
{[%clk 0:01:21.7]} 29... Kf7 {[%clk 0:00:14.8]} 30. Raxb8 {[%clk 0:01:18.6]}
30... cxb5 {[%clk 0:00:11.2]} 31. Rxc8 {[%clk 0:01:15.5]} 31... Bxc8 {[%clk
0:00:11.2]} 32. Bxb5 {[%clk 0:01:14.4]} 32... f4 {[%clk 0:00:09.3]} 33. Rb8
{[%clk 0:01:07.1]} 33... Bf5 {[%clk 0:00:08.3]} 34. c6 {[%clk 0:01:03.7]} 34...
fxe3 {[%clk 0:00:06.5]} 35. fxe3 {[%clk 0:01:02.3]} 35... Be7 {[%clk 0:00:05.8]}
36. c7 {[%clk 0:00:59.2]} 36... Bd6 {[%clk 0:00:06.1]} 37. c8=Q {[%clk
0:00:54.8]} 37... Bxc8 {[%clk 0:00:05.9]} 38. Rxc8 {[%clk 0:00:53.6]} 38... Bg3
{[%clk 0:00:06.8]} 39. Rc6 {[%clk 0:00:50.1]} 39... h5 {[%clk 0:00:06.5]} 40.
Ra6 {[%clk 0:00:48.6]} 40... Ke7 {[%clk 0:00:06]} 41. Ba4 {[%clk 0:00:47.9]}
41... h4 {[%clk 0:00:04.8]} 42. Bb3 {[%clk 0:00:47.2]} 42... Be1 {[%clk
0:00:03.9]} 43. Bxd5 {[%clk 0:00:46.7]} 43... Bxc3 {[%clk 0:00:03.8]} 44. Bxe4
{[%clk 0:00:46.7]} 44... Be1 {[%clk 0:00:03.8]} 45. Bf3 {[%clk 0:00:45.1]} 45...
Bd2 {[%clk 0:00:03.7]} 46. Kf2 {[%clk 0:00:44]} 46... Bc3 {[%clk 0:00:03.6]} 47.
Ke2 {[%clk 0:00:43.3]} 47... Bb4 {[%clk 0:00:03]} 48. Kd3 {[%clk 0:00:43.1]}
48... Bd6 {[%clk 0:00:03]} 49. Bg4 {[%clk 0:00:41.8]} 49... Bg3 {[%clk
0:00:02.6]} 50. e4 {[%clk 0:00:41.2]} 50... Kf7 {[%clk 0:00:02.9]} 51. e5 {[%clk
0:00:41.2]} 51... Ke7 {[%clk 0:00:03.8]} 52. Ke4 {[%clk 0:00:41.2]} 52... Kf7
{[%clk 0:00:04.1]} 53. d5 {[%clk 0:00:41.2]} 53... Bf4 {[%clk 0:00:03.9]} 54.
Kf5 {[%clk 0:00:40.1]} 54... Kg7 {[%clk 0:00:03.8]} 55. d6 {[%clk 0:00:39.9]}
55... Kf7 {[%clk 0:00:03.8]} 56. Bh5+ {[%clk 0:00:39.2]} 56... Kg7 {[%clk
0:00:04]} 57. d7 {[%clk 0:00:36.8]} 57... Bxe5 {[%clk 0:00:01.8]} 58. Kxe5
{[%clk 0:00:34.2]} 58... g4 {[%clk 0:00:02.2]} 59. d8=Q {[%clk 0:00:33.2]} 59...
gxh3 {[%clk 0:00:01.7]} 60. Qd7+ {[%clk 0:00:33]} 60... Kh8 {[%clk 0:00:01.5]}
61. Ra8# {[%clk 0:00:33.1]} 1-0

[Event "*** Titled Tuesday Blitz"]
[Site "Chess.com"]
[Date "2021.04.06"]
[Round "2"]
[White "Cryptochess"]
[Black "Beca95"]
[Result "0-1"]
[WhiteElo "2560"]
[BlackElo "2919"]
[TimeControl "180+1"]
[EndTime "10:19:14 PDT"]
[Termination "Beca95 won by resignation"]

1. e4 {[%clk 0:03:00.9]} 1... e5 {[%clk 0:02:59.3]} 2. Nf3 {[%clk 0:03:00.9]}
2... Nc6 {[%clk 0:02:59.7]} 3. Bc4 {[%clk 0:02:59.5]} 3... Nf6 {[%clk
0:02:54.9]} 4. d3 {[%clk 0:02:55.9]} 4... h6 {[%clk 0:02:54.4]} 5. O-O {[%clk
0:02:55]} 5... d6 {[%clk 0:02:54.7]} 6. c3 {[%clk 0:02:54.6]} 6... g5 {[%clk
0:02:54.6]} 7. Re1 {[%clk 0:02:52.2]} 7... g4 {[%clk 0:02:53.6]} 8. Nfd2 {[%clk
0:02:52.2]} 8... h5 {[%clk 0:02:51.8]} 9. Nf1 {[%clk 0:02:52.8]} 9... h4 {[%clk
0:02:51.7]} 10. d4 {[%clk 0:02:43.8]} 10... Bd7 {[%clk 0:02:50.2]} 11. b4 {[%clk
0:02:19.9]} 11... a6 {[%clk 0:02:47.2]} 12. Qb3 {[%clk 0:02:19.6]} 12... Qe7
{[%clk 0:02:46.5]} 13. Ne3 {[%clk 0:02:07.6]} 13... exd4 {[%clk 0:02:43.2]} 14.
cxd4 {[%clk 0:01:36.6]} 14... g3 {[%clk 0:02:41.7]} 15. e5 {[%clk 0:01:05.4]}
15... gxf2+ {[%clk 0:02:39.2]} 16. Kxf2 {[%clk 0:01:05.5]} 16... Ne4+ {[%clk
0:02:38.8]} 17. Kg1 {[%clk 0:01:03.9]} 17... Nxd4 {[%clk 0:02:08]} 18. Qd3
{[%clk 0:01:02]} 18... dxe5 {[%clk 0:01:36.1]} 19. Qxe4 {[%clk 0:01:00.4]} 19...
O-O-O {[%clk 0:01:30.4]} 20. Nd5 {[%clk 0:00:55.6]} 20... Qd6 {[%clk 0:01:30]}
21. Bb2 {[%clk 0:00:44.8]} 21... Rg8 {[%clk 0:01:24.5]} 22. Nd2 {[%clk
0:00:40.1]} 22... Be6 {[%clk 0:01:16.3]} 23. Ne3 {[%clk 0:00:25.7]} 23... f5
{[%clk 0:01:11.8]} 24. Bxe6+ {[%clk 0:00:23.7]} 24... Qxe6 {[%clk 0:01:11.5]}
25. Qxh4 {[%clk 0:00:22.8]} 25... f4 {[%clk 0:01:04]} 26. Nec4 {[%clk
0:00:20.6]} 26... Bxb4 {[%clk 0:00:52.7]} 27. Rxe5 {[%clk 0:00:18.7]} 27... Qc6
{[%clk 0:00:50.1]} 28. Qh3+ {[%clk 0:00:17.8]} 28... Kb8 {[%clk 0:00:49.1]} 29.
Rae1 {[%clk 0:00:13.8]} 29... f3 {[%clk 0:00:41.5]} 30. Bxd4 {[%clk 0:00:12.3]}
30... Rxg2+ {[%clk 0:00:38.2]} 31. Kh1 {[%clk 0:00:11]} 31... Rxd2 {[%clk
0:00:36.7]} 32. Nxd2 {[%clk 0:00:05.4]} 32... f2+ {[%clk 0:00:36.8]} 33. Qg2
{[%clk 0:00:05.3]} 33... fxe1=Q+ {[%clk 0:00:29.8]} 34. Rxe1 {[%clk 0:00:06.2]}
34... Qxg2+ {[%clk 0:00:23.6]} 35. Kxg2 {[%clk 0:00:07.1]} 35... Rxd4 {[%clk
0:00:23.3]} 36. Re8+ {[%clk 0:00:07.7]} 36... Ka7 {[%clk 0:00:23.6]} 37. Nf3
{[%clk 0:00:08.4]} 37... Rd5 {[%clk 0:00:22.2]} 38. h4 {[%clk 0:00:08.7]} 38...
Ra5 {[%clk 0:00:20]} 39. Re2 {[%clk 0:00:09]} 39... Bc3 {[%clk 0:00:19.7]} 40.
Kg3 {[%clk 0:00:09.4]} 40... c5 {[%clk 0:00:19.1]} 41. Kg4 {[%clk 0:00:09.8]}
41... c4 {[%clk 0:00:19.5]} 42. h5 {[%clk 0:00:10.4]} 42... Bg7 {[%clk 0:00:19]}
43. Rh2 {[%clk 0:00:09.5]} 43... c3 {[%clk 0:00:17.8]} 44. h6 {[%clk 0:00:08.5]}
44... Bh8 {[%clk 0:00:18.1]} 45. h7 {[%clk 0:00:08.3]} 45... Rc5 {[%clk
0:00:17.8]} 46. Rc2 {[%clk 0:00:07.4]} 46... Rc7 {[%clk 0:00:15.6]} 47. Ng5
{[%clk 0:00:07.8]} 47... b5 {[%clk 0:00:15.9]} 48. Kf5 {[%clk 0:00:07.5]} 48...
b4 {[%clk 0:00:16.1]} 49. Kg6 {[%clk 0:00:08.1]} 49... a5 {[%clk 0:00:16.2]} 50.
Nf7 {[%clk 0:00:08.8]} 50... Bd4 {[%clk 0:00:15.9]} 51. h8=Q {[%clk 0:00:07.4]}
51... Bxh8 {[%clk 0:00:15.7]} 52. Nxh8 {[%clk 0:00:08.3]} 52... a4 {[%clk
0:00:16.1]} 53. Nf7 {[%clk 0:00:06.1]} 53... b3 {[%clk 0:00:16.5]} 54. axb3
{[%clk 0:00:06.7]} 54... axb3 {[%clk 0:00:17.4]} 55. Rc1 {[%clk 0:00:06.6]}
55... b2 {[%clk 0:00:17]} 56. Rb1 {[%clk 0:00:07.1]} 56... c2 {[%clk 0:00:17.4]}
57. Rxb2 {[%clk 0:00:07.7]} 57... c1=Q {[%clk 0:00:17.5]} 58. Ra2+ {[%clk
0:00:08.6]} 58... Kb8 {[%clk 0:00:17]} 59. Rf2 {[%clk 0:00:08.1]} 59... Rc6+
{[%clk 0:00:16.6]} 60. Kg7 {[%clk 0:00:07.7]} 60... Qg1+ {[%clk 0:00:16.5]} 0-1

[Event "*** Titled Tuesday Blitz"]
[Site "Chess.com"]
[Date "2021.04.06"]
[Round "2"]
[White "Tekushka"]
[Black "laskerisalive"]
[Result "0-1"]
[WhiteElo "2412"]
[BlackElo "2523"]
[TimeControl "180+1"]
[EndTime "10:19:14 PDT"]
[Termination "laskerisalive won by resignation"]

1. e4 {[%clk 0:03:00.9]} 1... e5 {[%clk 0:02:46.4]} 2. Nf3 {[%clk 0:03:00.7]}
2... Nc6 {[%clk 0:02:41.6]} 3. Bc4 {[%clk 0:03:00.3]} 3... Bc5 {[%clk 0:02:39]}
4. c3 {[%clk 0:02:59.9]} 4... d6 {[%clk 0:02:36.8]} 5. d4 {[%clk 0:02:58.3]}
5... exd4 {[%clk 0:02:36.6]} 6. cxd4 {[%clk 0:02:57.8]} 6... Bb6 {[%clk
0:02:36.9]} 7. h3 {[%clk 0:02:53.7]} 7... Nf6 {[%clk 0:02:34.9]} 8. Nc3 {[%clk
0:02:53.9]} 8... O-O {[%clk 0:02:33.8]} 9. O-O {[%clk 0:02:53.7]} 9... Nxe4
{[%clk 0:02:32.7]} 10. Nxe4 {[%clk 0:02:44.5]} 10... d5 {[%clk 0:02:26.6]} 11.
Bg5 {[%clk 0:02:36.1]} 11... f6 {[%clk 0:02:26.2]} 12. Bxf6 {[%clk 0:01:54.7]}
12... gxf6 {[%clk 0:02:14.8]} 13. Bb3 {[%clk 0:01:54.6]} 13... Kh8 {[%clk
0:02:05.9]} 14. Nc3 {[%clk 0:01:51.9]} 14... Ne7 {[%clk 0:01:52.4]} 15. Re1
{[%clk 0:01:49]} 15... c6 {[%clk 0:01:51.6]} 16. Na4 {[%clk 0:01:39.7]} 16...
Rg8 {[%clk 0:01:49.9]} 17. Kh1 {[%clk 0:01:30.4]} 17... Bc7 {[%clk 0:01:47.8]}
18. Nc5 {[%clk 0:01:23.9]} 18... Qd6 {[%clk 0:01:46.9]} 19. Qe2 {[%clk
0:01:16.5]} 19... Ng6 {[%clk 0:01:42.3]} 20. Ne6 {[%clk 0:00:50.9]} 20... Re8
{[%clk 0:01:17.8]} 21. Nxc7 {[%clk 0:00:50.6]} 21... Rxe2 {[%clk 0:01:16.5]} 22.
Nxa8 {[%clk 0:00:50.6]} 22... Rxe1+ {[%clk 0:01:08.3]} 23. Rxe1 {[%clk
0:00:50.6]} 23... Bd7 {[%clk 0:01:08.1]} 24. h4 {[%clk 0:00:36.1]} 24... Qb8
{[%clk 0:01:07.1]} 25. h5 {[%clk 0:00:36.2]} 25... Nf8 {[%clk 0:01:06.9]} 26.
Re7 {[%clk 0:00:32.7]} 26... Qxa8 {[%clk 0:01:06.5]} 27. Bc2 {[%clk 0:00:30.7]}
27... Qd8 {[%clk 0:01:04.3]} 28. Re3 {[%clk 0:00:27.7]} 28... Ne6 {[%clk
0:00:57.2]} 29. Kg1 {[%clk 0:00:21.2]} 29... Qf8 {[%clk 0:00:55.1]} 30. a3
{[%clk 0:00:19.6]} 30... Qh6 {[%clk 0:00:52.8]} 31. Bf5 {[%clk 0:00:19.1]} 31...
Nf8 {[%clk 0:00:47.4]} 32. Bxd7 {[%clk 0:00:19]} 32... Nxd7 {[%clk 0:00:47]} 33.
Re8+ {[%clk 0:00:19.1]} 33... Nf8 {[%clk 0:00:44.7]} 34. Rb8 {[%clk 0:00:18.3]}
34... Kg8 {[%clk 0:00:40.1]} 35. g3 {[%clk 0:00:17.7]} 35... Qxh5 {[%clk
0:00:39.5]} 36. Kg2 {[%clk 0:00:18.3]} 36... Qf5 {[%clk 0:00:36.6]} 37. Rxb7
{[%clk 0:00:18]} 37... Qe4 {[%clk 0:00:36.3]} 38. Rb8 {[%clk 0:00:16.6]} 38...
Kg7 {[%clk 0:00:34.8]} 39. Rb7+ {[%clk 0:00:15.6]} 39... Kg6 {[%clk 0:00:34.7]}
40. Rb3 {[%clk 0:00:15.7]} 40... Ne6 {[%clk 0:00:27.8]} 41. Re3 {[%clk
0:00:15.6]} 41... Qg4 {[%clk 0:00:26.9]} 42. Nh2 {[%clk 0:00:14]} 42... Nf4+
{[%clk 0:00:24.1]} 43. Kg1 {[%clk 0:00:07.9]} 43... Qd1+ {[%clk 0:00:23.5]} 44.
Nf1 {[%clk 0:00:07]} 44... Ne2+ {[%clk 0:00:23.2]} 45. Kg2 {[%clk 0:00:07]}
45... Nxd4 {[%clk 0:00:23.5]} 46. Re7 {[%clk 0:00:04.9]} 46... Nf5 {[%clk
0:00:20.9]} 47. Rxa7 {[%clk 0:00:03.9]} 47... Qc2 {[%clk 0:00:19.5]} 48. b4
{[%clk 0:00:02.5]} 48... Qe4+ {[%clk 0:00:18.5]} 49. Kg1 {[%clk 0:00:02.5]}
49... Nd4 {[%clk 0:00:17.3]} 50. Nh2 {[%clk 0:00:02.3]} 50... Nf3+ {[%clk
0:00:16.5]} 51. Nxf3 {[%clk 0:00:01.9]} 51... Qxf3 {[%clk 0:00:17.4]} 52. Ra4
{[%clk 0:00:02]} 52... Qd1+ {[%clk 0:00:15.6]} 53. Kg2 {[%clk 0:00:02.2]} 53...
Qxa4 {[%clk 0:00:16.4]} 0-1